[Event "*** SCC Grand Prix: Titled Tuesday Blitz"]
[Site "Chess.com"]
[Date "2020.06.23"]
[Round "5"]
[White "boasovietica"]
[Black "Alindsay211"]
[Result "0-1"]
[WhiteElo "2445"]
[BlackElo "2297"]
[TimeControl "180+1"]
[EndTime "10:57:19 PDT"]
[Termination "Alindsay211 won on time"]

1. e4 {[%clk 0:03:00.9]} 1... c5 {[%clk 0:02:59.4]} 2. Nf3 {[%clk 0:02:58.7]}
2... e6 {[%clk 0:02:59.1]} 3. Nc3 {[%clk 0:02:57.8]} 3... Nc6 {[%clk 0:02:59.1]}
4. g3 {[%clk 0:02:56.8]} 4... g6 {[%clk 0:02:55.3]} 5. Bg2 {[%clk 0:02:56.9]}
5... Bg7 {[%clk 0:02:55.7]} 6. O-O {[%clk 0:02:57.1]} 6... Nge7 {[%clk
0:02:56.2]} 7. d3 {[%clk 0:02:49.7]} 7... O-O {[%clk 0:02:54.3]} 8. Be3 {[%clk
0:02:44.1]} 8... b6 {[%clk 0:02:40.7]} 9. Qd2 {[%clk 0:02:42.4]} 9... Re8 {[%clk
0:02:34.2]} 10. Bh6 {[%clk 0:02:40.2]} 10... Bh8 {[%clk 0:02:29.8]} 11. Qf4
{[%clk 0:02:27.2]} 11... d6 {[%clk 0:02:20.2]} 12. Qh4 {[%clk 0:02:26.4]} 12...
Nd4 {[%clk 0:02:01]} 13. Ne1 {[%clk 0:01:50.3]} 13... Rb8 {[%clk 0:01:52.3]} 14.
f4 {[%clk 0:01:45.4]} 14... b5 {[%clk 0:01:48.9]} 15. Nd1 {[%clk 0:01:44.7]}
15... b4 {[%clk 0:01:48.6]} 16. g4 {[%clk 0:01:37.3]} 16... Nec6 {[%clk
0:01:41.7]} 17. Bg5 {[%clk 0:01:27.1]} 17... f6 {[%clk 0:01:38]} 18. Bh6 {[%clk
0:01:27.1]} 18... f5 {[%clk 0:01:24.9]} 19. Bg5 {[%clk 0:01:22.3]} 19... Qc7
{[%clk 0:01:24.9]} 20. c3 {[%clk 0:01:12.2]} 20... bxc3 {[%clk 0:01:22.9]} 21.
bxc3 {[%clk 0:01:13.1]} 21... Nb5 {[%clk 0:01:18.7]} 22. Rc1 {[%clk 0:01:11.4]}
22... Bg7 {[%clk 0:00:51.2]} 23. a4 {[%clk 0:00:44.8]} 23... Na3 {[%clk
0:00:31.2]} 24. Ne3 {[%clk 0:00:32]} 24... fxe4 {[%clk 0:00:24.5]} 25. dxe4
{[%clk 0:00:28.4]} 25... Na5 {[%clk 0:00:20]} 26. f5 {[%clk 0:00:25.9]} 26...
exf5 {[%clk 0:00:19.6]} 27. Nd5 {[%clk 0:00:24]} 27... Qf7 {[%clk 0:00:16.2]}
28. exf5 {[%clk 0:00:23.5]} 28... gxf5 {[%clk 0:00:15.3]} 29. gxf5 {[%clk
0:00:21]} 29... Bb7 {[%clk 0:00:09.8]} 30. f6 {[%clk 0:00:16.9]} 30... Bf8
{[%clk 0:00:08.3]} 31. Nf4 {[%clk 0:00:12.7]} 31... Bxg2 {[%clk 0:00:07]} 32.
Nexg2 {[%clk 0:00:12.1]} 32... N3c4 {[%clk 0:00:07]} 33. Rf3 {[%clk 0:00:11.5]}
33... Ne5 {[%clk 0:00:05.3]} 34. Rg3 {[%clk 0:00:11.3]} 34... Ng6 {[%clk
0:00:06]} 35. Nxg6 {[%clk 0:00:10.3]} 35... hxg6 {[%clk 0:00:06.9]} 36. Bh6
{[%clk 0:00:10.3]} 36... Re6 {[%clk 0:00:04.4]} 37. Rf1 {[%clk 0:00:10.3]} 37...
Rbe8 {[%clk 0:00:01.5]} 38. Qh5 {[%clk 0:00:09.4]} 38... Qh7 {[%clk 0:00:01.2]}
39. Rxg6+ {[%clk 0:00:08.9]} 39... Kh8 {[%clk 0:00:01.8]} 40. Bg7+ {[%clk
0:00:08.7]} 40... Bxg7 {[%clk 0:00:02.3]} 41. fxg7+ {[%clk 0:00:08.5]} 41... Kg8
{[%clk 0:00:02.8]} 42. Rxe6 {[%clk 0:00:08.4]} 42... Qxh5 {[%clk 0:00:02.4]} 43.
Rxe8+ {[%clk 0:00:06.9]} 43... Qxe8 {[%clk 0:00:03.3]} 0-1

[Event "*** SCC Grand Prix: Titled Tuesday Blitz"]
[Site "Chess.com"]
[Date "2020.06.23"]
[Round "5"]
[White "StephenDedalus83"]
[Black "hermionegrangermagic"]
[Result "1-0"]
[WhiteElo "2765"]
[BlackElo "2531"]
[TimeControl "180+1"]
[EndTime "10:57:21 PDT"]
[Termination "StephenDedalus83 won on time"]

1. e4 {[%clk 0:03:00.9]} 1... c5 {[%clk 0:02:58.5]} 2. Nf3 {[%clk 0:03:00.6]}
2... Nc6 {[%clk 0:02:57.9]} 3. d4 {[%clk 0:03:00.7]} 3... cxd4 {[%clk
0:02:58.8]} 4. Nxd4 {[%clk 0:03:00.8]} 4... e5 {[%clk 0:02:59]} 5. Nb5 {[%clk
0:02:59.9]} 5... d6 {[%clk 0:02:59.1]} 6. N1c3 {[%clk 0:02:59.9]} 6... a6 {[%clk
0:02:59]} 7. Na3 {[%clk 0:03:00.4]} 7... b5 {[%clk 0:02:59.2]} 8. Nd5 {[%clk
0:02:59.2]} 8... Nge7 {[%clk 0:02:59.3]} 9. c4 {[%clk 0:02:58]} 9... Nd4 {[%clk
0:02:55.3]} 10. Be3 {[%clk 0:02:54.4]} 10... Nxd5 {[%clk 0:02:51.2]} 11. cxd5
{[%clk 0:02:53.7]} 11... Be7 {[%clk 0:02:48.6]} 12. Bd3 {[%clk 0:02:53.4]} 12...
O-O {[%clk 0:02:46.2]} 13. O-O {[%clk 0:02:53.2]} 13... g6 {[%clk 0:01:48.6]}
14. Qd2 {[%clk 0:02:45.5]} 14... Bf6 {[%clk 0:01:40.3]} 15. Bxd4 {[%clk
0:02:38.6]} 15... exd4 {[%clk 0:01:39.8]} 16. Nc2 {[%clk 0:02:39]} 16... Bg7
{[%clk 0:01:32.4]} 17. Rae1 {[%clk 0:02:31.3]} 17... f5 {[%clk 0:01:24.4]} 18.
exf5 {[%clk 0:02:29.3]} 18... Bxf5 {[%clk 0:01:25.3]} 19. Nb4 {[%clk 0:02:19.8]}
19... Qh4 {[%clk 0:01:06.2]} 20. Nc6 {[%clk 0:02:08.3]} 20... Kh8 {[%clk
0:00:36.4]} 21. Re2 {[%clk 0:01:44.6]} 21... Bg4 {[%clk 0:00:31.9]} 22. f3
{[%clk 0:01:43.4]} 22... Bh6 {[%clk 0:00:28.7]} 23. Qb4 {[%clk 0:01:30.4]} 23...
Bf5 {[%clk 0:00:15.7]} 24. Bxf5 {[%clk 0:01:29.3]} 24... Rxf5 {[%clk 0:00:16.6]}
25. Qxd4+ {[%clk 0:00:45.8]} 25... Qxd4+ {[%clk 0:00:16.3]} 26. Nxd4 {[%clk
0:00:46.7]} 26... Rxd5 {[%clk 0:00:16.8]} 27. Ne6 {[%clk 0:00:39]} 27... Re8
{[%clk 0:00:15.2]} 28. Rfe1 {[%clk 0:00:38.4]} 28... Rf5 {[%clk 0:00:13.9]} 29.
Kf2 {[%clk 0:00:35]} 29... Rf7 {[%clk 0:00:13.1]} 30. Rd1 {[%clk 0:00:32.4]}
30... Rd7 {[%clk 0:00:11.1]} 31. Nc5 {[%clk 0:00:29.1]} 31... Rxe2+ {[%clk
0:00:09.9]} 32. Kxe2 {[%clk 0:00:29.1]} 32... Re7+ {[%clk 0:00:10.2]} 33. Ne4
{[%clk 0:00:28.4]} 33... Bf4 {[%clk 0:00:10.8]} 34. g3 {[%clk 0:00:27.3]} 34...
Be5 {[%clk 0:00:11.1]} 35. b3 {[%clk 0:00:27.4]} 35... Rd7 {[%clk 0:00:10.3]}
36. f4 {[%clk 0:00:25.5]} 36... Bg7 {[%clk 0:00:10.3]} 37. Rxd6 {[%clk
0:00:24.6]} 37... Re7 {[%clk 0:00:10.7]} 38. Kf3 {[%clk 0:00:24.5]} 38... Bf8
{[%clk 0:00:10.8]} 39. Rxa6 {[%clk 0:00:23.7]} 39... Rc7 {[%clk 0:00:10.3]} 40.
Ng5 {[%clk 0:00:22.6]} 40... Rc3+ {[%clk 0:00:09.1]} 41. Ke4 {[%clk 0:00:21.9]}
41... Rc2 {[%clk 0:00:09.1]} 42. Ra8 {[%clk 0:00:21]} 42... Kg7 {[%clk 0:00:09]}
43. Ne6+ {[%clk 0:00:21]} 43... Kf7 {[%clk 0:00:09.5]} 44. Nxf8 {[%clk 0:00:21]}
44... Rxh2 {[%clk 0:00:08.4]} 45. Nd7 {[%clk 0:00:20.8]} 45... Rd2 {[%clk
0:00:08.2]} 46. Ne5+ {[%clk 0:00:20.7]} 46... Ke6 {[%clk 0:00:08]} 47. Ra6+
{[%clk 0:00:20.2]} 47... Ke7 {[%clk 0:00:07.9]} 48. Ra7+ {[%clk 0:00:20.1]}
48... Kf6 {[%clk 0:00:08.2]} 49. g4 {[%clk 0:00:20.2]} 49... Re2+ {[%clk
0:00:07.7]} 50. Kf3 {[%clk 0:00:19.6]} 50... Rc2 {[%clk 0:00:07.9]} 51. Ra6+
{[%clk 0:00:18.8]} 51... Kg7 {[%clk 0:00:07.4]} 52. f5 {[%clk 0:00:18.5]} 52...
Kh6 {[%clk 0:00:07.1]} 53. f6 {[%clk 0:00:18.2]} 53... b4 {[%clk 0:00:05.7]} 54.
f7 {[%clk 0:00:17.9]} 54... Rc8 {[%clk 0:00:04.3]} 55. Nd7 {[%clk 0:00:17.2]}
1-0

[Event "*** SCC Grand Prix: Titled Tuesday Blitz"]
[Site "Chess.com"]
[Date "2020.06.23"]
[Round "5"]
[White "Yoshikrov"]
[Black "AndrewDGreen"]
[Result "1-0"]
[WhiteElo "2025"]
[BlackElo "2299"]
[TimeControl "180+1"]
[EndTime "10:57:22 PDT"]
[Termination "Yoshikrov won by resignation"]

1. e4 {[%clk 0:01:08.2]} 1... c5 {[%clk 0:02:57]} 2. Nf3 {[%clk 0:01:07.6]} 2...
g6 {[%clk 0:02:56.9]} 3. d4 {[%clk 0:01:07.9]} 3... cxd4 {[%clk 0:02:57.8]} 4.
Nxd4 {[%clk 0:01:08.2]} 4... Nc6 {[%clk 0:02:57.8]} 5. Nc3 {[%clk 0:01:07.2]}
5... Bg7 {[%clk 0:02:57.6]} 6. Be3 {[%clk 0:01:07.7]} 6... Nf6 {[%clk
0:02:57.4]} 7. Bc4 {[%clk 0:01:06.9]} 7... O-O {[%clk 0:02:57.4]} 8. Bb3 {[%clk
0:01:07.2]} 8... d6 {[%clk 0:02:56.8]} 9. f3 {[%clk 0:01:07]} 9... Bd7 {[%clk
0:02:55.8]} 10. Qd2 {[%clk 0:01:07.4]} 10... Nxd4 {[%clk 0:02:56]} 11. Bxd4
{[%clk 0:01:07.1]} 11... b5 {[%clk 0:02:56.3]} 12. O-O-O {[%clk 0:01:05.7]}
12... e6 {[%clk 0:02:47.4]} 13. Bxf6 {[%clk 0:00:56.9]} 13... Qxf6 {[%clk
0:02:36.8]} 14. Qxd6 {[%clk 0:00:49.2]} 14... b4 {[%clk 0:02:28.2]} 15. Qxb4
{[%clk 0:00:46.5]} 15... Rab8 {[%clk 0:02:22.1]} 16. Qd6 {[%clk 0:00:42.7]}
16... Rfd8 {[%clk 0:02:15.3]} 17. Qc7 {[%clk 0:00:29.2]} 17... Be8 {[%clk
0:01:42.7]} 18. Rxd8 {[%clk 0:00:28.5]} 18... Rxd8 {[%clk 0:01:42.3]} 19. Rd1
{[%clk 0:00:27.5]} 19... Bh6+ {[%clk 0:01:18.4]} 20. Kb1 {[%clk 0:00:27.3]}
20... Rxd1+ {[%clk 0:01:18]} 21. Nxd1 {[%clk 0:00:27]} 21... Qd4 {[%clk
0:01:18.2]} 22. a3 {[%clk 0:00:12.1]} 22... Qxd1+ {[%clk 0:01:17.5]} 23. Ka2
{[%clk 0:00:12.6]} 23... Qd7 {[%clk 0:01:13.8]} 24. Qc5 {[%clk 0:00:11.4]} 24...
Bf8 {[%clk 0:01:11.3]} 25. Qg5 {[%clk 0:00:11.4]} 25... h6 {[%clk 0:01:07]} 26.
Qf4 {[%clk 0:00:10.5]} 26... Bg7 {[%clk 0:01:06.2]} 27. h4 {[%clk 0:00:10.5]}
27... a5 {[%clk 0:01:03.7]} 28. a4 {[%clk 0:00:09.2]} 28... Qd4 {[%clk
0:01:02.5]} 29. c3 {[%clk 0:00:07.9]} 29... Qd7 {[%clk 0:00:50.5]} 30. Qb8
{[%clk 0:00:07.7]} 30... Kh7 {[%clk 0:00:47.7]} 31. g4 {[%clk 0:00:07.8]} 31...
Qc6 {[%clk 0:00:41.4]} 32. h5 {[%clk 0:00:07.5]} 32... gxh5 {[%clk 0:00:37.4]}
33. gxh5 {[%clk 0:00:08.4]} 33... Bd7 {[%clk 0:00:33.3]} 34. e5 {[%clk
0:00:08.4]} 34... Qxf3 {[%clk 0:00:26.5]} 35. Bc2+ {[%clk 0:00:08.6]} 35... f5
{[%clk 0:00:06.7]} 36. exf6+ {[%clk 0:00:08]} 36... Qf5 {[%clk 0:00:05.2]} 37.
Bxf5+ {[%clk 0:00:07.7]} 37... exf5 {[%clk 0:00:06.1]} 38. fxg7 {[%clk
0:00:08.2]} 38... Be6+ {[%clk 0:00:07]} 39. Ka3 {[%clk 0:00:07.5]} 39... Kxg7
{[%clk 0:00:07.9]} 40. Qd6 {[%clk 0:00:07.4]} 40... Kf6 {[%clk 0:00:08.8]} 41.
Qc5 {[%clk 0:00:07.4]} 41... f4 {[%clk 0:00:08.6]} 42. Qxa5 {[%clk 0:00:07.6]}
42... Bf5 {[%clk 0:00:09]} 43. Qc5 {[%clk 0:00:07.7]} 43... Kg5 {[%clk
0:00:09.3]} 44. a5 {[%clk 0:00:08.1]} 44... Kg4 {[%clk 0:00:09.7]} 45. a6 {[%clk
0:00:08.3]} 45... f3 {[%clk 0:00:10.3]} 46. Qf2 {[%clk 0:00:07.5]} 1-0

[Event "*** SCC Grand Prix: Titled Tuesday Blitz"]
[Site "Chess.com"]
[Date "2020.06.23"]
[Round "5"]
[White "Gordima"]
[Black "Squirlolz"]
[Result "1-0"]
[WhiteElo "2743"]
[BlackElo "2513"]
[TimeControl "180+1"]
[EndTime "10:57:23 PDT"]
[Termination "Gordima won on time"]

1. d4 {[%clk 0:03:00.9]} 1... e6 {[%clk 0:02:44.1]} 2. c4 {[%clk 0:03:00.4]}
2... b6 {[%clk 0:02:43.9]} 3. e4 {[%clk 0:02:58.7]} 3... Bb7 {[%clk 0:02:44.2]}
4. Bd3 {[%clk 0:02:59.2]} 4... Nc6 {[%clk 0:02:44.3]} 5. Ne2 {[%clk 0:02:58.6]}
5... Nb4 {[%clk 0:02:43.7]} 6. Nbc3 {[%clk 0:02:57.6]} 6... Nxd3+ {[%clk
0:02:44]} 7. Qxd3 {[%clk 0:02:58.5]} 7... g6 {[%clk 0:02:44.8]} 8. d5 {[%clk
0:02:56.4]} 8... Bg7 {[%clk 0:02:44.4]} 9. Be3 {[%clk 0:02:41.4]} 9... d6 {[%clk
0:02:43.5]} 10. f4 {[%clk 0:02:36.6]} 10... Ne7 {[%clk 0:02:43.4]} 11. Bd4
{[%clk 0:02:35]} 11... O-O {[%clk 0:02:27.8]} 12. Bxg7 {[%clk 0:02:33.6]} 12...
Kxg7 {[%clk 0:02:28.7]} 13. O-O-O {[%clk 0:02:30.9]} 13... Rc8 {[%clk 0:01:47]}
14. h4 {[%clk 0:02:28.9]} 14... exd5 {[%clk 0:01:46.4]} 15. cxd5 {[%clk
0:02:28.2]} 15... c6 {[%clk 0:01:46.7]} 16. dxc6 {[%clk 0:02:08.7]} 16... Nxc6
{[%clk 0:01:33.3]} 17. h5 {[%clk 0:02:07]} 17... Qf6 {[%clk 0:01:22.1]} 18. Kb1
{[%clk 0:01:38.9]} 18... Rfe8 {[%clk 0:00:59.3]} 19. Qh3 {[%clk 0:01:31.4]}
19... Nb4 {[%clk 0:00:53]} 20. hxg6 {[%clk 0:01:25.9]} 20... hxg6 {[%clk
0:00:45.1]} 21. Qh6+ {[%clk 0:00:44.9]} 21... Kg8 {[%clk 0:00:45.2]} 22. Rxd6
{[%clk 0:00:45.8]} 22... Qg7 {[%clk 0:00:45.7]} 23. Qxg7+ {[%clk 0:00:35.1]}
23... Kxg7 {[%clk 0:00:46.6]} 24. Ng3 {[%clk 0:00:34.5]} 24... Rh8 {[%clk
0:00:30.3]} 25. Rf1 {[%clk 0:00:30.9]} 25... Rh2 {[%clk 0:00:29.6]} 26. Rf2
{[%clk 0:00:27.5]} 26... Ba6 {[%clk 0:00:25.9]} 27. Rfd2 {[%clk 0:00:24.9]}
27... Rh4 {[%clk 0:00:10.9]} 28. f5 {[%clk 0:00:24.5]} 28... Rg4 {[%clk
0:00:05.2]} 29. a3 {[%clk 0:00:24.2]} 29... Nd3 {[%clk 0:00:03.1]} 30. R6xd3
{[%clk 0:00:22.9]} 30... Bxd3+ {[%clk 0:00:04]} 31. Rxd3 {[%clk 0:00:23.8]}
31... gxf5 {[%clk 0:00:03.7]} 32. Nxf5+ {[%clk 0:00:24]} 32... Kf6 {[%clk
0:00:04.6]} 33. g3 {[%clk 0:00:24.4]} 33... Ke5 {[%clk 0:00:04.8]} 34. Rd5+
{[%clk 0:00:23.2]} 34... Ke6 {[%clk 0:00:05.1]} 35. Rd6+ {[%clk 0:00:21.2]}
35... Ke5 {[%clk 0:00:05.4]} 36. Rd7 {[%clk 0:00:21]} 36... Rh8 {[%clk
0:00:03.2]} 37. Rxf7 {[%clk 0:00:19.8]} 37... Rh1+ {[%clk 0:00:04.1]} 38. Ka2
{[%clk 0:00:20.1]} 38... Rg6 {[%clk 0:00:04]} 39. Rxa7 {[%clk 0:00:19.8]} 39...
Rc6 {[%clk 0:00:04]} 40. Re7+ {[%clk 0:00:18]} 40... Kf6 {[%clk 0:00:03.7]} 41.
Rd7 {[%clk 0:00:18.5]} 41... b5 {[%clk 0:00:03.8]} 42. Rd6+ {[%clk 0:00:18.5]}
42... Rxd6 {[%clk 0:00:03.9]} 43. Nxd6 {[%clk 0:00:19.4]} 43... b4 {[%clk
0:00:04.3]} 44. axb4 {[%clk 0:00:19.5]} 44... Ke5 {[%clk 0:00:05.2]} 45. Nc4+
{[%clk 0:00:19.1]} 45... Kd4 {[%clk 0:00:05.7]} 46. Kb3 {[%clk 0:00:20]} 46...
Rh3 {[%clk 0:00:05.2]} 47. b5 {[%clk 0:00:19.5]} 47... Rxg3 {[%clk 0:00:06.1]}
48. b6 {[%clk 0:00:19.5]} 48... Rg7 {[%clk 0:00:06.2]} 49. Kb4 {[%clk
0:00:19.4]} 49... Rh7 {[%clk 0:00:04.1]} 50. e5 {[%clk 0:00:19.6]} 50... Re7
{[%clk 0:00:02.8]} 51. Kb5 {[%clk 0:00:19]} 51... Rb7 {[%clk 0:00:03.3]} 52. Kc6
{[%clk 0:00:18.3]} 52... Rb8 {[%clk 0:00:03.4]} 53. Nd6 {[%clk 0:00:15.5]} 53...
Ra8 {[%clk 0:00:01.8]} 54. b7 {[%clk 0:00:15.5]} 54... Rh8 {[%clk 0:00:01.4]}
55. Nc8 {[%clk 0:00:14.6]} 1-0

[Event "*** SCC Grand Prix: Titled Tuesday Blitz"]
[Site "Chess.com"]
[Date "2020.06.23"]
[Round "5"]
[White "OK97"]
[Black "Hasangatin_Ramil"]
[Result "1-0"]
[WhiteElo "2838"]
[BlackElo "2607"]
[TimeControl "180+1"]
[EndTime "10:57:24 PDT"]
[Termination "OK97 won on time"]

1. d4 {[%clk 0:03:00.9]} 1... d6 {[%clk 0:02:56.7]} 2. e4 {[%clk 0:02:59.8]}
2... Nf6 {[%clk 0:02:55.9]} 3. Nc3 {[%clk 0:03:00.4]} 3... e5 {[%clk 0:02:56.4]}
4. Nf3 {[%clk 0:03:00.6]} 4... Nbd7 {[%clk 0:02:56.2]} 5. Bc4 {[%clk 0:03:00.8]}
5... Be7 {[%clk 0:02:56.5]} 6. a4 {[%clk 0:02:58.8]} 6... O-O {[%clk 0:02:56.5]}
7. O-O {[%clk 0:02:58.9]} 7... c6 {[%clk 0:02:56.9]} 8. h3 {[%clk 0:02:59.5]}
8... b6 {[%clk 0:02:56]} 9. Qe2 {[%clk 0:02:54]} 9... a6 {[%clk 0:02:54.8]} 10.
Rd1 {[%clk 0:02:52.2]} 10... Qc7 {[%clk 0:02:54.4]} 11. Ba2 {[%clk 0:02:34.8]}
11... Rb8 {[%clk 0:02:47.8]} 12. Nh4 {[%clk 0:02:27.1]} 12... exd4 {[%clk
0:02:36.2]} 13. Rxd4 {[%clk 0:02:19.8]} 13... Nc5 {[%clk 0:02:21.2]} 14. Rd1
{[%clk 0:02:14.6]} 14... Re8 {[%clk 0:02:03.4]} 15. b4 {[%clk 0:02:08.4]} 15...
Ne6 {[%clk 0:01:58.1]} 16. Nf5 {[%clk 0:02:07.2]} 16... Bf8 {[%clk 0:01:58]} 17.
Qf3 {[%clk 0:02:05]} 17... b5 {[%clk 0:01:34.9]} 18. axb5 {[%clk 0:02:00.8]}
18... axb5 {[%clk 0:01:34.8]} 19. Bb2 {[%clk 0:01:56.3]} 19... Ng5 {[%clk
0:01:06.9]} 20. Qf4 {[%clk 0:01:42.2]} 20... Ngxe4 {[%clk 0:00:50.2]} 21. Nxe4
{[%clk 0:01:40.7]} 21... Nxe4 {[%clk 0:00:38.6]} 22. Ne3 {[%clk 0:01:00]} 22...
Be6 {[%clk 0:00:30.7]} 23. Bxe6 {[%clk 0:00:52.3]} 23... Rxe6 {[%clk 0:00:31.6]}
24. Nf5 {[%clk 0:00:47]} 24... Rbe8 {[%clk 0:00:24.6]} 25. f3 {[%clk 0:00:37.9]}
25... Nf6 {[%clk 0:00:23.7]} 26. Qg3 {[%clk 0:00:36.9]} 26... g6 {[%clk
0:00:18.6]} 27. Nd4 {[%clk 0:00:24.5]} 27... Re5 {[%clk 0:00:13.6]} 28. Nb3
{[%clk 0:00:17.2]} 28... R5e6 {[%clk 0:00:12.8]} 29. Bd4 {[%clk 0:00:15.8]}
29... Qd8 {[%clk 0:00:10.9]} 30. Ra7 {[%clk 0:00:15.3]} 30... Bg7 {[%clk
0:00:10.4]} 31. Na5 {[%clk 0:00:13.4]} 31... Qc8 {[%clk 0:00:09.8]} 32. Qf2
{[%clk 0:00:12.2]} 32... Re2 {[%clk 0:00:06.6]} 33. Qg3 {[%clk 0:00:12.6]} 33...
Nh5 {[%clk 0:00:04.9]} 34. Qxd6 {[%clk 0:00:12.4]} 34... Re1+ {[%clk 0:00:04.2]}
35. Rxe1 {[%clk 0:00:11.5]} 35... Rxe1+ {[%clk 0:00:05.1]} 36. Kf2 {[%clk
0:00:12.1]} 36... Rd1 {[%clk 0:00:04.7]} 37. c3 {[%clk 0:00:11.7]} 37... Bxd4+
{[%clk 0:00:04.5]} 38. cxd4 {[%clk 0:00:12.6]} 38... Qe8 {[%clk 0:00:04.4]} 39.
Qe5 {[%clk 0:00:11.2]} 39... Qxe5 {[%clk 0:00:04.5]} 40. dxe5 {[%clk 0:00:12.1]}
40... Nf4 {[%clk 0:00:04.7]} 41. Nxc6 {[%clk 0:00:11.3]} 41... g5 {[%clk
0:00:05]} 42. g3 {[%clk 0:00:11.2]} 42... Rd2+ {[%clk 0:00:05.2]} 43. Ke1 {[%clk
0:00:10.9]} 43... Rc2 {[%clk 0:00:02.2]} 44. Ne7+ {[%clk 0:00:10.7]} 44... Kf8
{[%clk 0:00:02.5]} 45. gxf4 {[%clk 0:00:11.6]} 45... gxf4 {[%clk 0:00:03.3]} 46.
Nf5 {[%clk 0:00:11.8]} 46... Ke8 {[%clk 0:00:02.4]} 47. Nd6+ {[%clk 0:00:11.8]}
47... Kf8 {[%clk 0:00:01.1]} 48. Rxf7+ {[%clk 0:00:11.1]} 48... Kg8 {[%clk
0:00:02]} 49. e6 {[%clk 0:00:11.2]} 1-0

[Event "*** SCC Grand Prix: Titled Tuesday Blitz"]
[Site "Chess.com"]
[Date "2020.06.23"]
[Round "5"]
[White "Violord"]
[Black "penguingm1"]
[Result "0-1"]
[WhiteElo "2624"]
[BlackElo "2903"]
[TimeControl "180+1"]
[EndTime "10:57:28 PDT"]
[Termination "penguingm1 won on time"]

1. e4 {[%clk 0:02:53.7]} 1... e5 {[%clk 0:02:59.5]} 2. Nf3 {[%clk 0:02:53.3]}
2... Nc6 {[%clk 0:02:59.2]} 3. Bc4 {[%clk 0:02:52.8]} 3... Nf6 {[%clk
0:02:47.3]} 4. d3 {[%clk 0:02:52.3]} 4... h6 {[%clk 0:02:45.1]} 5. c3 {[%clk
0:02:49.9]} 5... d6 {[%clk 0:02:41.7]} 6. Bb3 {[%clk 0:02:49.2]} 6... g5 {[%clk
0:02:36.9]} 7. Be3 {[%clk 0:02:46]} 7... Bg7 {[%clk 0:02:23]} 8. Nbd2 {[%clk
0:02:44.3]} 8... O-O {[%clk 0:02:15.2]} 9. h4 {[%clk 0:02:32.8]} 9... g4 {[%clk
0:02:11]} 10. Nh2 {[%clk 0:02:32.5]} 10... d5 {[%clk 0:01:17.3]} 11. exd5 {[%clk
0:02:30]} 11... Nxd5 {[%clk 0:01:08.6]} 12. Nxg4 {[%clk 0:02:23.6]} 12... Nxe3
{[%clk 0:00:59.3]} 13. Nxe3 {[%clk 0:02:16.2]} 13... Qxd3 {[%clk 0:00:58.8]} 14.
Qf3 {[%clk 0:01:57.8]} 14... Be6 {[%clk 0:00:46.3]} 15. Bxe6 {[%clk 0:01:49.2]}
15... fxe6 {[%clk 0:00:45.5]} 16. Qe4 {[%clk 0:01:42]} 16... Qd6 {[%clk
0:00:27.5]} 17. g3 {[%clk 0:01:38.3]} 17... Rad8 {[%clk 0:00:26.9]} 18. Rd1
{[%clk 0:01:36.8]} 18... Qc5 {[%clk 0:00:22.4]} 19. O-O {[%clk 0:01:31.5]} 19...
Rf7 {[%clk 0:00:13.4]} 20. a4 {[%clk 0:01:26.6]} 20... Rdf8 {[%clk 0:00:12.1]}
21. Ndc4 {[%clk 0:01:19.6]} 21... a6 {[%clk 0:00:09.9]} 22. b4 {[%clk 0:01:18]}
22... Qe7 {[%clk 0:00:07.3]} 23. b5 {[%clk 0:01:15.7]} 23... axb5 {[%clk
0:00:07.6]} 24. axb5 {[%clk 0:01:15]} 24... Na7 {[%clk 0:00:07.5]} 25. Nxe5
{[%clk 0:01:12.2]} 25... Bxe5 {[%clk 0:00:05.4]} 26. Qxe5 {[%clk 0:01:11.7]}
26... Nc8 {[%clk 0:00:03.9]} 27. c4 {[%clk 0:01:06]} 27... Nd6 {[%clk
0:00:03.6]} 28. b6 {[%clk 0:01:01.7]} 28... Ne8 {[%clk 0:00:01.9]} 29. c5 {[%clk
0:00:55]} 29... Kh7 {[%clk 0:00:01.5]} 30. Qe4+ {[%clk 0:00:53.8]} 30... Kg8
{[%clk 0:00:01.9]} 31. Qxb7 {[%clk 0:00:53.1]} 31... Qxc5 {[%clk 0:00:02.3]} 32.
bxc7 {[%clk 0:00:45.6]} 32... Nxc7 {[%clk 0:00:03.2]} 33. Qe4 {[%clk 0:00:43.6]}
33... Rg7 {[%clk 0:00:03.4]} 34. Kg2 {[%clk 0:00:33.1]} 34... Qh5 {[%clk
0:00:02.9]} 35. Rd6 {[%clk 0:00:24]} 35... Kh8 {[%clk 0:00:02.6]} 36. Rc6 {[%clk
0:00:20.1]} 36... Ne8 {[%clk 0:00:01.9]} 37. Rc8 {[%clk 0:00:17.4]} 37... Rgf7
{[%clk 0:00:01.5]} 38. f4 {[%clk 0:00:15.6]} 38... Kg7 {[%clk 0:00:01.5]} 39.
Qd4+ {[%clk 0:00:14.4]} 39... Nf6 {[%clk 0:00:02]} 40. Rxf8 {[%clk 0:00:13.6]}
40... Rxf8 {[%clk 0:00:02.9]} 41. Rf2 {[%clk 0:00:11.7]} 41... Qg6 {[%clk
0:00:03.2]} 42. f5 {[%clk 0:00:10.5]} 42... Qe8 {[%clk 0:00:02.5]} 43. Rb2
{[%clk 0:00:08.6]} 43... Qc6+ {[%clk 0:00:02.7]} 44. Kh2 {[%clk 0:00:07.7]}
44... Kg8 {[%clk 0:00:03.3]} 45. fxe6 {[%clk 0:00:06.8]} 45... Qxe6 {[%clk
0:00:04.2]} 46. Rf2 {[%clk 0:00:04.1]} 46... Qxe3 {[%clk 0:00:03.8]} 47. Qxe3
{[%clk 0:00:03.1]} 47... Ng4+ {[%clk 0:00:04.2]} 48. Kh3 {[%clk 0:00:02.5]}
48... Nxe3 {[%clk 0:00:04.6]} 49. Re2 {[%clk 0:00:01.7]} 49... Nf5 {[%clk
0:00:04.6]} 50. g4 {[%clk 0:00:01.9]} 50... Nd4 {[%clk 0:00:05.1]} 0-1